[Event "44th Chess Olympiad Women 2022"]
[Site "Chennai"]
[Date "2022.08.02"]
[Round "5.55"]
[White "Elfelo, Eklas"]
[Black "Roberts, Tallulah"]
[Result "0-1"]
[ECO "C15"]
[WhiteElo "1562"]
[BlackElo "1536"]
[Annotator "NA RC COMBH"]
[PlyCount "116"]
[EventDate "2022.07.29"]
[EventType "team-tourn"]
[EventCountry "IND"]
[SourceTitle "playchess.com"]
[Source "ChessBase"]
[SourceQuality "1"]
[WhiteTeam "Libya"]
[BlackTeam "Channel Islands"]
[WhiteTeamCountry "LBY"]
[BlackTeamCountry "JCI"]
[TimeControl "40/5400+30:1800+30"]

1. e4 {[%emt 0:00:04]} e6 {[%emt 0:00:01]} 2. d4 {[%emt 0:00:10]} d5 {[%emt 0:00:01]} 3. Nc3 {[%emt 0:00:19]} Bb4 {[%emt 0:00:07]} 4. Bd2 {[%emt 0:01:00]} c5 {[%emt 0:01:52]} 5. Bd3 {[%emt 0:08:05]} cxd4 {[%emt 0:04:02]} 6. Nb5 {[%emt 0:03:55]} Bxd2+ {[%emt 0:05:29]} 7. Qxd2 {[%emt 0:00:16]} dxe4 {[%emt 0:03:32]} 8. Bxe4 {[%emt 0:00:32]} Nf6 {[%emt 0:03:27]} 9. Bd3 {[%emt 0:03:40]} O-O {[%emt 0:01:19]} 10. Nf3 {[%emt 0:04:37]} Nc6 {[%emt 0:00:45]} 11. Bc4 {[%emt 0:04:23]} e5 {[%emt 0:02:07]} 12. O-O {[%emt 0:03:07]} a6 {[%emt 0:01:59]} 13. Na3 {[%emt 0:00:36]} b5 {[%emt 0:00:53]} 14. Be2 {[%emt 0:01:58]} Bb7 {[%emt 0:03:24]} 15. Rad1 {[%emt 0:04:58]} Ne4 {[%emt 0:06:20]} 16. Qc1 {[%emt 0:10:12]} Qe8 {[%emt 0:15:04]} 17. Nd2 {[%emt 0:08:45]} Nxd2 {[%emt 0:09:39]} 18. Qxd2 {[%emt 0:05:11]} Ne7 {[%emt 0:04:13]} 19. c3 {[%emt 0:05:51]} Nf5 {[%emt 0:04:15]} 20. Nc2 {[%emt 0:03:13]} Qc6 {[%emt 0:04:54]} 21. Bf3 {[%emt 0:01:10]} e4 {[%emt 0:00:20]} 22. Bg4 {[%emt 0:09:03]} e3 {[%emt 0:01:47]} 23. fxe3 {[%emt 0:02:54]} dxe3 {[%emt 0:04:59]} 24. Qe2 {[%emt 0:08:08]} Nh4 {[%emt 0:03:38]} 25. Ne1 {[%emt 0:00:20]} f5 {[%emt 0:04:13]} 26. Bf3 {[%emt 0:02:39]} Nxf3+ {[%emt 0:00:02]} 27. Qxf3 {[%emt 0:00:52]} Qxf3 {[%emt 0:00:32]} 28. Rxf3 {[%emt 0:01:08]} Bxf3 {[%emt 0:00:39]} 29. Nxf3 {[%emt 0:00:06]} Rad8 {[%emt 0:02:16]} 30. Re1 {[%emt 0:00:12]} Rfe8 {[%emt 0:00:33]} 31. b4 {[%emt 0:01:45]} Rd3 {[%emt 0:01:16]} 32. g3 {[%emt 0:01:11]} Rxc3 {[%emt 0:00:36]} 33. h4 {[%emt 0:00:43]} Ra3 {[%emt 0:00:42]} 34. Re2 {[%emt 0:00:13]} h6 {[%emt 0:00:22]} 35. h5 {[%emt 0:01:00]} Re4 {[%emt 0:00:32]} 36. Kg2 {[%emt 0:00:48]} Rxb4 {[%emt 0:00:26]} 37. Nh4 {[%emt 0:01:22]} Rba4 {[%emt 0:00:32]} 38. Kf3 {[%emt 0:00:54]} Rxa2 {[%emt 0:00:18]} 39. Rxe3 {[%emt 0:00:14]} R2a3 {[%emt 0:00:07]} 40. Nxf5 {[%emt 0:00:50]} Rxe3+ {[%emt 0:00:12]} 41. Kxe3 {[%emt 0:30:49]} Kf7 {[%emt 0:34:10]} 42. Kf3 {[%emt 0:00:00]} b4 {[%emt 0:00:00]} 43. Nd4 {[%emt 0:00:00]} b3 {[%emt 0:00:00]} 44. Nxb3 {[%emt 0:00:00]} Ra3 {[%emt 0:00:00]} 45. g4 {[%emt 0:00:00]} Rxb3+ {[%emt 0:00:00]} 46. Kf4 {[%emt 0:00:00]} Rb5 {[%emt 0:00:00]} 47. Ke4 {[%emt 0:00:00]} a5 {[%emt 0:00:00]} 48. Kf4 {[%emt 0:00:00]} a4 {[%emt 0:00:00]} 49. Ke4 {[%emt 0:00:00]} a3 {[%emt 0:00:00]} 50. Kd4 {[%emt 0:00:00]} a2 {[%emt 0:00:00]} 51. Kc4 {[%emt 0:00:00]} Rb1 {[%emt 0:00:00]} 52. Kd4 {[%emt 0:00:00]} a1=Q+ {[%emt 0:00:00]} 53. Ke4 {[%emt 0:00:00]} Qa5 {[%emt 0:00:00]} 54. Kf3 {[%emt 0:00:00]} Rb4 {[%emt 0:00:00]} 55. Kg3 {[%emt 0:00:00]} Qg5 {[%emt 0:00:00]} 56. Kh3 {[%emt 0:00:00]} Qxg4+ {[%emt 0:00:00]} 57. Kh2 {[%emt 0:00:00]} Rb2+ {[%emt 0:00:00]} 58. Kh1 {[%emt 0:00:00]} Qg2# {[%emt 0:00:00]} 0-1

[Event "44th Chess Olympiad Women 2022"]
[Site "Chennai"]
[Date "2022.08.02"]
[Round "5.56"]
[White "Ferrufino, Michelle"]
[Black "Jacobs, Annelaine"]
[Result "1-0"]
[ECO "B23"]
[WhiteElo "1811"]
[BlackElo "1612"]
[Annotator "NA RC COMBH"]
[PlyCount "57"]
[EventDate "2022.07.29"]
[EventType "team-tourn"]
[EventCountry "IND"]
[SourceTitle "playchess.com"]
[Source "ChessBase"]
[SourceQuality "1"]
[WhiteTeam "Nicaragua"]
[BlackTeam "ARU"]
[WhiteTeamCountry "NCA"]
[TimeControl "40/5400+30:1800+30"]

1. e4 {[%emt 0:00:10]} c5 {[%emt 0:00:07]} 2. Nc3 {[%emt 0:00:12]} g6 {[%emt 0:00:17]} 3. f4 {[%emt 0:00:21]} Bg7 {[%emt 0:00:27]} 4. Nf3 {[%emt 0:00:14]} Nc6 {[%emt 0:00:28]} 5. Bb5 {[%emt 0:00:22]} e6 {[%emt 0:06:44]} 6. Bxc6 {[%emt 0:00:47]} bxc6 {[%emt 0:06:48]} 7. d3 {[%emt 0:01:38]} d5 {[%emt 0:03:49]} 8. e5 {[%emt 0:01:02]} Ne7 {[%emt 0:12:52]} 9. O-O {[%emt 0:01:33]} O-O {[%emt 0:02:08]} 10. Na4 {[%emt 0:01:14]} Qa5 {[%emt 0:13:33]} 11. c4 {[%emt 0:00:43]} d4 {[%emt 0:14:17]} 12. Bd2 {[%emt 0:01:44]} Qc7 {[%emt 0:03:29]} 13. Nxc5 {[%emt 0:00:32]} Rd8 {[%emt 0:00:44]} 14. Qe1 {[%emt 0:01:50]} Qb8 {[%emt 0:08:24]} 15. Qh4 {[%emt 0:16:54]} Qc7 {[%emt 0:08:39]} 16. g4 {[%emt 0:02:03]} h6 {[%emt 0:03:24]} 17. Qf2 {[%emt 0:08:05]} a5 {[%emt 0:06:10]} 18. b4 {[%emt 0:02:14]} axb4 {[%emt 0:01:16]} 19. Bxb4 {[%emt 0:00:11]} Bf8 {[%emt 0:04:08]} 20. Nxd4 {[%emt 0:03:17]} Kh7 {[%emt 0:00:45]} 21. a3 {[%emt 0:09:52]} Ng8 {[%emt 0:01:06]} 22. Ndb3 {[%emt 0:03:55]} Bxc5 {[%emt 0:00:46]} 23. Nxc5 {[%emt 0:00:15]} Qa7 {[%emt 0:00:53]} 24. Qf3 {[%emt 0:03:27]} Bb7 {[%emt 0:00:36]} 25. f5 {[%emt 0:00:57]} exf5 {[%emt 0:00:24]} 26. gxf5 {[%emt 0:00:15]} Bc8 {[%emt 0:00:37]} 27. fxg6+ {[%emt 0:02:41]} fxg6 {[%emt 0:00:05]} 28. Qf7+ {[%emt 0:00:27]} Qxf7 {[%emt 0:00:04]} 29. Rxf7+ {[%emt 0:00:13]} 1-0

[Event "44th Chess Olympiad Women 2022"]
[Site "Chennai"]
[Date "2022.08.02"]
[Round "5.56"]
[White "Granados Ortiz, Maria Jose"]
[Black "Aponte, Samantha"]
[Result "1-0"]
[ECO "C60"]
[WhiteElo "1753"]
[BlackElo "1087"]
[Annotator "NA RC COMBH"]
[PlyCount "43"]
[EventDate "2022.07.29"]
[EventType "team-tourn"]
[EventCountry "IND"]
[SourceTitle "playchess.com"]
[Source "ChessBase"]
[SourceQuality "1"]
[WhiteTeam "Nicaragua"]
[BlackTeam "ARU"]
[WhiteTeamCountry "NCA"]
[TimeControl "40/5400+30:1800+30"]

1. e4 {[%emt 0:00:04]} e5 {[%emt 0:00:05]} 2. Nf3 {[%emt 0:00:06]} Nc6 {[%emt 0:00:09]} 3. Bb5 {[%emt 0:00:10]} Nge7 {[%emt 0:00:17]} 4. O-O {[%emt 0:02:03]} g6 {[%emt 0:00:41]} 5. d4 {[%emt 0:01:48]} Bg7 {[%emt 0:03:54]} 6. Be3 {[%emt 0:01:55]} O-O {[%emt 0:07:01]} 7. dxe5 {[%emt 0:12:41]} Nxe5 {[%emt 0:02:57]} 8. Nxe5 {[%emt 0:00:15]} Bxe5 {[%emt 0:01:29]} 9. Bd4 {[%emt 0:00:28]} d6 {[%emt 0:06:13]} 10. Bxe5 {[%emt 0:01:44]} dxe5 {[%emt 0:00:20]} 11. Nc3 {[%emt 0:00:10]} Be6 {[%emt 0:04:24]} 12. Qe2 {[%emt 0:00:38]} a6 {[%emt 0:19:09]} 13. Bc4 {[%emt 0:06:07]} Qc8 {[%emt 0:06:09]} 14. Rad1 {[%emt 0:01:10]} Nc6 {[%emt 0:07:35]} 15. Nd5 {[%emt 0:02:20]} Bxd5 {[%emt 0:07:46]} 16. Bxd5 {[%emt 0:10:44]} Nd4 {[%emt 0:06:47]} 17. Qd3 {[%emt 0:03:05]} c6 {[%emt 0:04:08]} 18. c3 {[%emt 0:04:04]} Nb5 {[%emt 0:07:20]} 19. Bb3 {[%emt 0:03:25]} Rd8 {[%emt 0:02:36]} 20. Qf3 {[%emt 0:03:00]} Kg7 {[%emt 0:01:08]} 21. Qxf7+ {[%emt 0:01:45]} Kh8 {[%emt 0:02:13]} 22. Qf6# {[%emt 0:01:42]} 1-0

[Event "44th Chess Olympiad Women 2022"]
[Site "Chennai"]
[Date "2022.08.02"]
[Round "5.56"]
[White "Sagastegui, Thamara"]
[Black "Alvarez Gutierrez, Patricia"]
[Result "1/2-1/2"]
[ECO "B18"]
[WhiteElo "1362"]
[BlackElo "1715"]
[Annotator "NA RC COMBH"]
[PlyCount "71"]
[EventDate "2022.07.29"]
[EventType "team-tourn"]
[EventCountry "IND"]
[SourceTitle "playchess.com"]
[Source "ChessBase"]
[SourceQuality "1"]
[WhiteTeam "ARU"]
[BlackTeam "Nicaragua"]
[BlackTeamCountry "NCA"]
[TimeControl "40/5400+30:1800+30"]

1. e4 {[%emt 0:00:02]} c6 {[%emt 0:00:10]} 2. d4 {[%emt 0:00:20]} d5 {[%emt 0:00:09]} 3. Nc3 {[%emt 0:00:24]} dxe4 {[%emt 0:00:36]} 4. Nxe4 {[%emt 0:00:06]} Bf5 {[%emt 0:00:08]} 5. Ng3 {[%emt 0:00:27]} Bg6 {[%emt 0:00:11]} 6. Nh3 {[%emt 0:01:04]} Nf6 {[%emt 0:03:26]} 7. Nf4 {[%emt 0:01:41]} e6 {[%emt 0:02:27]} 8. h4 {[%emt 0:02:15]} e5 {[%emt 0:06:51]} 9. dxe5 {[%emt 0:00:52]} Qa5+ {[%emt 0:00:27]} 10. c3 {[%emt 0:00:34]} Qxe5+ {[%emt 0:00:34]} 11. Be2 {[%emt 0:01:25]} Ne4 {[%emt 0:04:58]} 12. Nxg6 {[%emt 0:04:49]} hxg6 {[%emt 0:00:11]} 13. f4 {[%emt 0:06:58]} Qe7 {[%emt 0:07:20]} 14. Nxe4 {[%emt 0:02:39]} Qxe4 {[%emt 0:00:51]} 15. Rh2 {[%emt 0:02:51]} Bc5 {[%emt 0:06:01]} 16. Qd3 {[%emt 0:03:45]} Qe7 {[%emt 0:02:27]} 17. g3 {[%emt 0:05:20]} Nd7 {[%emt 0:07:51]} 18. Bd2 {[%emt 0:10:21]} O-O-O {[%emt 0:01:01]} 19. Qf3 {[%emt 0:02:39]} Nf6 {[%emt 0:03:51]} 20. O-O-O {[%emt 0:03:38]} Ne4 {[%emt 0:03:46]} 21. Be1 {[%emt 0:17:09]} Rxd1+ {[%emt 0:06:36]} 22. Bxd1 {[%emt 0:05:58]} f5 {[%emt 0:10:27]} 23. Re2 {[%emt 0:04:24]} Rd8 {[%emt 0:04:35]} 24. Bc2 {[%emt 0:16:29]} Qd6 {[%emt 0:07:25]} 25. g4 {[%emt 0:05:54]} Kb8 {[%emt 0:06:04]} 26. Bg3 {[%emt 0:00:54]} Nxg3 {[%emt 0:03:31]} 27. Qxg3 {[%emt 0:00:04]} fxg4 {[%emt 0:00:35]} 28. Qxg4 {[%emt 0:00:07]} Be3+ {[%emt 0:03:21]} 29. Kb1 {[%emt 0:00:41]} Bxf4 {[%emt 0:00:54]} 30. Qxg6 {[%emt 0:00:22]} Qd5 {[%emt 0:04:43]} 31. Qe4 {[%emt 0:00:20]} Qd6 {[%emt 0:01:42]} 32. Qg6 {[%emt 0:00:49]} Qxg6 {[%emt 0:02:30]} 33. Bxg6 {[%emt 0:00:04]} Bh6 {[%emt 0:00:35]} 34. Re8 {[%emt 0:00:26]} Rxe8 {[%emt 0:00:37]} 35. Bxe8 {[%emt 0:00:03]} Kc7 {[%emt 0:00:09]} 36. Kc2 {[%emt 0:00:18]} 1/2-1/2

[Event "44th Chess Olympiad Women 2022"]
[Site "Chennai"]
[Date "2022.08.02"]
[Round "5.57"]
[White "Kojima, Natsumi"]
[Black "Magno, Angelica"]
[Result "1-0"]
[ECO "B09"]
[WhiteElo "1782"]
[BlackElo "1211"]
[Annotator "NA RC COMBH"]
[PlyCount "81"]
[EventDate "2022.07.29"]
[EventType "team-tourn"]
[EventCountry "IND"]
[SourceTitle "playchess.com"]
[Source "ChessBase"]
[SourceQuality "1"]
[WhiteTeam "Japan"]
[BlackTeam "PLW"]
[WhiteTeamCountry "JPN"]
[TimeControl "40/5400+30:1800+30"]

1. e4 {[%emt 0:00:03]} d6 {[%emt 0:00:22]} 2. d4 {[%emt 0:00:06]} Nf6 {[%emt 0:00:23]} 3. Nc3 {[%emt 0:00:13]} g6 {[%emt 0:00:24]} 4. f4 {[%emt 0:00:19]} Bg7 {[%emt 0:00:44]} 5. Nf3 {[%emt 0:00:27]} Bg4 {[%emt 0:00:54]} 6. h3 {[%emt 0:05:38]} Bxf3 {[%emt 0:00:43]} 7. Qxf3 {[%emt 0:00:18]} Nbd7 {[%emt 0:01:10]} 8. e5 {[%emt 0:04:38]} Ng8 {[%emt 0:01:37]} 9. Bc4 {[%emt 0:09:45]} e6 {[%emt 0:01:31]} 10. Be3 {[%emt 0:07:00]} d5 {[%emt 0:01:11]} 11. Bd3 {[%emt 0:00:30]} Ne7 {[%emt 0:00:27]} 12. g4 {[%emt 0:01:17]} c6 {[%emt 0:01:39]} 13. h4 {[%emt 0:06:17]} Qb6 {[%emt 0:00:57]} 14. Kd2 {[%emt 0:07:37]} a5 {[%emt 0:03:43]} 15. h5 {[%emt 0:03:20]} h6 {[%emt 0:01:55]} 16. hxg6 {[%emt 0:04:12]} fxg6 {[%emt 0:03:40]} 17. b3 {[%emt 0:01:58]} O-O-O {[%emt 0:01:14]} 18. Na4 {[%emt 0:02:17]} Qc7 {[%emt 0:01:55]} 19. Nb2 {[%emt 0:04:17]} Rdf8 {[%emt 0:01:50]} 20. Qe2 {[%emt 0:01:37]} Nb8 {[%emt 0:01:42]} 21. Raf1 {[%emt 0:05:17]} Qb6 {[%emt 0:07:27]} 22. Na4 {[%emt 0:01:27]} Qc7 {[%emt 0:01:55]} 23. Nc5 {[%emt 0:00:38]} Rf7 {[%emt 0:02:32]} 24. Nxe6 {[%emt 0:00:55]} Qb6 {[%emt 0:01:14]} 25. Kc1 {[%emt 0:04:21]} a4 {[%emt 0:07:27]} 26. Kb2 {[%emt 0:01:30]} Bf8 {[%emt 0:03:32]} 27. f5 {[%emt 0:06:21]} a3+ {[%emt 0:01:31]} 28. Kb1 {[%emt 0:02:03]} gxf5 {[%emt 0:12:39]} 29. gxf5 {[%emt 0:00:53]} Ng8 {[%emt 0:03:20]} 30. Qh5 {[%emt 0:03:48]} Re7 {[%emt 0:05:27]} 31. Nxf8 {[%emt 0:00:39]} Nf6 {[%emt 0:00:50]} 32. Qf3 {[%emt 0:04:00]} Rxf8 {[%emt 0:06:06]} 33. exf6 {[%emt 0:00:43]} Rxf6 {[%emt 0:00:43]} 34. Rhg1 {[%emt 0:01:53]} Ref7 {[%emt 0:05:05]} 35. Rg8+ {[%emt 0:01:00]} Kd7 {[%emt 0:01:29]} 36. Rxb8 {[%emt 0:00:44]} Qb4 {[%emt 0:01:09]} 37. Bc1 {[%emt 0:01:02]} Qxd4 {[%emt 0:02:19]} 38. Rxb7+ {[%emt 0:01:18]} Kc8 {[%emt 0:00:25]} 39. Rxf7 {[%emt 0:00:22]} Rxf7 {[%emt 0:00:10]} 40. Bxa3 {[%emt 0:00:17]} Qa7 {[%emt 0:01:01]} 41. Bb2 {[%emt 0:30:14]} 1-0

[Event "44th Chess Olympiad Women 2022"]
[Site "Chennai"]
[Date "2022.08.02"]
[Round "5.57"]
[White "Sisior, Destiny"]
[Black "Misawa, Yuki"]
[Result "0-1"]
[ECO "B12"]
[WhiteElo "1298"]
[BlackElo "1587"]
[Annotator "NA RC COMBH"]
[PlyCount "126"]
[EventDate "2022.07.29"]
[EventType "team-tourn"]
[EventCountry "IND"]
[SourceTitle "playchess.com"]
[Source "ChessBase"]
[SourceQuality "1"]
[WhiteTeam "PLW"]
[BlackTeam "Japan"]
[BlackTeamCountry "JPN"]
[TimeControl "40/5400+30:1800+30"]

1. e4 {[%emt 0:00:03]} c6 {[%emt 0:00:03]} 2. d4 {[%emt 0:00:57]} d5 {[%emt 0:00:06]} 3. e5 {[%emt 0:00:11]} Bf5 {[%emt 0:00:05]} 4. Nf3 {[%emt 0:01:01]} e6 {[%emt 0:00:21]} 5. Nc3 {[%emt 0:01:49]} c5 {[%emt 0:01:51]} 6. Bb5+ {[%emt 0:01:25]} Nc6 {[%emt 0:00:43]} 7. Bxc6+ {[%emt 0:00:44]} bxc6 {[%emt 0:00:11]} 8. b3 {[%emt 0:00:35]} Qb6 {[%emt 0:01:46]} 9. Ba3 {[%emt 0:01:04]} Qa5 {[%emt 0:03:08]} 10. Bb2 {[%emt 0:01:20]} Bg6 {[%emt 0:04:02]} 11. O-O {[%emt 0:01:28]} cxd4 {[%emt 0:02:18]} 12. Nxd4 {[%emt 0:00:49]} Qc7 {[%emt 0:00:42]} 13. Re1 {[%emt 0:01:27]} Bb4 {[%emt 0:00:28]} 14. a3 {[%emt 0:00:34]} Ba5 {[%emt 0:01:06]} 15. b4 {[%emt 0:00:15]} Bb6 {[%emt 0:00:22]} 16. Nf3 {[%emt 0:00:42]} Ne7 {[%emt 0:00:50]} 17. Rc1 {[%emt 0:03:07]} O-O {[%emt 0:01:59]} 18. a4 {[%emt 0:03:59]} a6 {[%emt 0:02:54]} 19. a5 {[%emt 0:00:48]} Ba7 {[%emt 0:00:22]} 20. Na4 {[%emt 0:01:03]} c5 {[%emt 0:05:29]} 21. c3 {[%emt 0:01:01]} c4 {[%emt 0:00:34]} 22. Nd4 {[%emt 0:03:37]} Nf5 {[%emt 0:03:21]} 23. Ba3 {[%emt 0:07:35]} Nxd4 {[%emt 0:03:53]} 24. cxd4 {[%emt 0:01:58]} Rfc8 {[%emt 0:03:53]} 25. Nc3 {[%emt 0:03:25]} Bd3 {[%emt 0:03:04]} 26. Qg4 {[%emt 0:01:11]} Qd8 {[%emt 0:02:44]} 27. h4 {[%emt 0:01:14]} Rab8 {[%emt 0:04:52]} 28. Re3 {[%emt 0:03:20]} Bf5 {[%emt 0:02:27]} 29. Qf4 {[%emt 0:00:48]} Rb7 {[%emt 0:01:19]} 30. Rd1 {[%emt 0:06:34]} h6 {[%emt 0:07:19]} 31. Rg3 {[%emt 0:04:52]} Kh7 {[%emt 0:05:08]} 32. Rc1 {[%emt 0:10:15]} Rcb8 {[%emt 0:03:45]} 33. Nd1 {[%emt 0:11:33]} f6 {[%emt 0:05:34]} 34. Ne3 {[%emt 0:03:42]} fxe5 {[%emt 0:02:28]} 35. Qxe5 {[%emt 0:00:34]} Qf6 {[%emt 0:12:11]} 36. Nxf5 {[%emt 0:04:16]} Qxe5 {[%emt 0:01:58]} 37. dxe5 {[%emt 0:00:40]} exf5 {[%emt 0:00:43]} 38. e6 {[%emt 0:01:10]} Re8 {[%emt 0:03:35]} 39. Re1 {[%emt 0:01:30]} d4 {[%emt 0:01:48]} 40. Kf1 {[%emt 0:00:52]} Bb8 {[%emt 0:02:49]} 41. Rf3 {[%emt 0:32:35]} Kg6 {[%emt 0:30:58]} 42. g3 {[%emt 0:03:23]} h5 {[%emt 0:04:03]} 43. Rc1 {[%emt 0:02:15]} c3 {[%emt 0:03:37]} 44. Rd3 {[%emt 0:00:34]} Be5 {[%emt 0:00:41]} 45. f4 {[%emt 0:00:24]} Bf6 {[%emt 0:00:23]} 46. Re1 {[%emt 0:01:01]} Rb5 {[%emt 0:00:00]} 47. Re2 {[%emt 0:00:00]} Kh7 {[%emt 0:00:00]} 48. Ke1 {[%emt 0:00:00]} Kg8 {[%emt 0:00:00]} 49. Kd1 {[%emt 0:00:00]} Kf8 {[%emt 0:00:00]} 50. Kc2 {[%emt 0:00:00]} Ke7 {[%emt 0:00:00]} 51. Rd1 {[%emt 0:00:00]} Kd6 {[%emt 0:00:00]} 52. Kd3 {[%emt 0:00:00]} Rxe6 {[%emt 0:00:00]} 53. Rxe6+ {[%emt 0:00:00]} Kxe6 {[%emt 0:00:00]} 54. Re1+ {[%emt 0:00:00]} Kd7 {[%emt 0:00:00]} 55. Re2 {[%emt 0:00:00]} Rb7 {[%emt 0:00:00]} 56. Rc2 {[%emt 0:00:00]} Kc6 {[%emt 0:00:00]} 57. Kc4 {[%emt 0:00:00]} Rd7 {[%emt 0:00:00]} 58. Kd3 {[%emt 0:00:00]} Kb5 {[%emt 0:00:00]} 59. Ra2 {[%emt 0:00:00]} Re7 {[%emt 0:00:00]} 60. Bc1 {[%emt 0:00:00]} Re1 {[%emt 0:00:00]} 61. Bd2 {[%emt 0:00:00]} cxd2 {[%emt 0:00:00]} 62. Kxd2 {[%emt 0:00:00]} Rb1 {[%emt 0:00:00]} 63. Kd3 {[%emt 0:00:00]} Kxb4 {[%emt 0:00:00]} 0-1

[Event "44th Chess Olympiad Women 2022"]
[Site "Chennai"]
[Date "2022.08.02"]
[Round "5.57"]
[White "Whipps Kayah Iblai Flores"]
[Black "Sakai, Azumi"]
[Result "0-1"]
[ECO "C11"]
[WhiteElo "1054"]
[BlackElo "1759"]
[Annotator "NA RC COMBH"]
[PlyCount "50"]
[EventDate "2022.07.29"]
[EventType "team-tourn"]
[EventCountry "IND"]
[SourceTitle "playchess.com"]
[Source "ChessBase"]
[SourceQuality "1"]
[WhiteTeam "PLW"]
[BlackTeam "Japan"]
[BlackTeamCountry "JPN"]
[TimeControl "40/5400+30:1800+30"]

1. e4 {[%emt 0:00:06]} e6 {[%emt 0:00:04]} 2. Nc3 {[%emt 0:00:10]} d5 {[%emt 0:00:25]} 3. d4 {[%emt 0:00:58]} Nf6 {[%emt 0:00:07]} 4. g3 {[%emt 0:00:34]} dxe4 {[%emt 0:00:50]} 5. Bg2 {[%emt 0:00:30]} Bb4 {[%emt 0:00:41]} 6. a3 {[%emt 0:01:03]} Ba5 {[%emt 0:00:55]} 7. f3 {[%emt 0:01:07]} exf3 {[%emt 0:00:26]} 8. Nxf3 {[%emt 0:00:23]} O-O {[%emt 0:00:48]} 9. O-O {[%emt 0:00:07]} Bb6 {[%emt 0:00:41]} 10. Be3 {[%emt 0:01:25]} Nc6 {[%emt 0:02:17]} 11. b4 {[%emt 0:04:29]} a5 {[%emt 0:01:19]} 12. Na2 {[%emt 0:04:07]} Nd5 {[%emt 0:00:57]} 13. Bg5 {[%emt 0:00:37]} f6 {[%emt 0:00:27]} 14. Bh4 {[%emt 0:00:41]} Ne3 {[%emt 0:00:38]} 15. Qd3 {[%emt 0:00:46]} Nxf1 {[%emt 0:00:40]} 16. Bxf1 {[%emt 0:00:23]} Nxd4 {[%emt 0:00:26]} 17. Bg2 {[%emt 0:02:25]} Nxf3+ {[%emt 0:00:22]} 18. Kf1 {[%emt 0:01:37]} Qxd3+ {[%emt 0:00:00]} 19. cxd3 {[%emt 0:00:37]} Nxh2+ {[%emt 0:00:00]} 20. Ke1 {[%emt 0:00:27]} g5 {[%emt 0:00:00]} 21. Rd1 {[%emt 0:00:24]} c6 {[%emt 0:00:25]} 22. d4 {[%emt 0:00:16]} gxh4 {[%emt 0:00:57]} 23. gxh4 {[%emt 0:00:30]} axb4 {[%emt 0:00:28]} 24. axb4 {[%emt 0:00:52]} Rxa2 {[%emt 0:00:24]} 25. Bh1 {[%emt 0:04:18]} Rf7 {[%emt 0:00:42]} 0-1

[Event "44th Chess Olympiad Women 2022"]
[Site "Chennai"]
[Date "2022.08.02"]
[Round "5.58"]
[White "Sitoe, Cheila Andre"]
[Black "Nosimilo, Mkhonto"]
[Result "1-0"]
[ECO "C54"]
[WhiteElo "1574"]
[BlackElo "1313"]
[Annotator "NA RC COMBH"]
[PlyCount "101"]
[EventDate "2022.07.29"]
[EventType "team-tourn"]
[EventCountry "IND"]
[SourceTitle "playchess.com"]
[Source "ChessBase"]
[SourceQuality "1"]
[WhiteTeam "Mozambique"]
[BlackTeam "SWZ"]
[WhiteTeamCountry "MOZ"]
[TimeControl "40/5400+30:1800+30"]

1. e4 {[%emt 0:00:04]} e5 {[%emt 0:00:05]} 2. Nf3 {[%emt 0:00:13]} Nc6 {[%emt 0:00:10]} 3. Bc4 {[%emt 0:00:11]} Bc5 {[%emt 0:00:39]} 4. O-O {[%emt 0:00:13]} Nf6 {[%emt 0:00:29]} 5. d3 {[%emt 0:00:15]} O-O {[%emt 0:00:20]} 6. c3 {[%emt 0:00:08]} a6 {[%emt 0:04:22]} 7. Bg5 {[%emt 0:01:10]} d6 {[%emt 0:03:00]} 8. h3 {[%emt 0:02:06]} h6 {[%emt 0:00:14]} 9. Bh4 {[%emt 0:00:45]} Na5 {[%emt 0:01:43]} 10. Nbd2 {[%emt 0:02:02]} Nxc4 {[%emt 0:00:20]} 11. Nxc4 {[%emt 0:00:09]} Re8 {[%emt 0:02:42]} 12. Kh1 {[%emt 0:03:14]} Bd7 {[%emt 0:06:48]} 13. Ne3 {[%emt 0:02:36]} c6 {[%emt 0:08:50]} 14. Nh2 {[%emt 0:07:09]} g5 {[%emt 0:05:35]} 15. Bg3 {[%emt 0:00:00]} Qb6 {[%emt 0:14:18]} 16. Qe2 {[%emt 0:00:00]} d5 {[%emt 0:05:34]} 17. b4 {[%emt 0:01:22]} Bd6 {[%emt 0:00:55]} 18. exd5 {[%emt 0:01:13]} cxd5 {[%emt 0:08:46]} 19. Qd2 {[%emt 0:01:04]} Nh5 {[%emt 0:01:19]} 20. Nxd5 {[%emt 0:01:11]} Nxg3+ {[%emt 0:01:54]} 21. fxg3 {[%emt 0:00:13]} Qd8 {[%emt 0:02:24]} 22. Nf6+ {[%emt 0:01:55]} Kg7 {[%emt 0:00:15]} 23. Nxe8+ {[%emt 0:00:22]} Qxe8 {[%emt 0:00:10]} 24. Rae1 {[%emt 0:00:19]} Bc6 {[%emt 0:00:42]} 25. Nf3 {[%emt 0:00:46]} e4 {[%emt 0:02:33]} 26. Nd4 {[%emt 0:02:26]} Bxg3 {[%emt 0:00:49]} 27. Nf5+ {[%emt 0:00:10]} Kg6 {[%emt 0:00:47]} 28. Nxg3 {[%emt 0:00:07]} Rd8 {[%emt 0:00:24]} 29. d4 {[%emt 0:00:32]} e3 {[%emt 0:00:21]} 30. Qxe3 {[%emt 0:00:12]} Qxe3 {[%emt 0:00:46]} 31. Rxe3 {[%emt 0:00:10]} Bd5 {[%emt 0:01:58]} 32. a3 {[%emt 0:03:54]} Rf8 {[%emt 0:01:44]} 33. Nf5 {[%emt 0:00:27]} Be6 {[%emt 0:01:11]} 34. Nd6 {[%emt 0:00:16]} Bd5 {[%emt 0:01:34]} 35. c4 {[%emt 0:00:41]} Bc6 {[%emt 0:00:24]} 36. d5 {[%emt 0:00:21]} Bd7 {[%emt 0:00:35]} 37. Re7 {[%emt 0:00:15]} Ba4 {[%emt 0:01:08]} 38. Rfxf7 {[%emt 0:01:16]} Rxf7 {[%emt 0:00:36]} 39. Rxf7 {[%emt 0:00:06]} Bb3 {[%emt 0:00:19]} 40. Rxb7 {[%emt 0:00:10]} Kf6 {[%emt 0:00:14]} 41. Ne4+ {[%emt 0:30:31]} Ke5 {[%emt 0:31:09]} 42. Nd2 {[%emt 0:00:34]} Ba2 {[%emt 0:00:39]} 43. Re7+ {[%emt 0:00:14]} Kd6 {[%emt 0:00:57]} 44. Re6+ {[%emt 0:00:10]} Kd7 {[%emt 0:00:17]} 45. Rxa6 {[%emt 0:00:17]} Ke7 {[%emt 0:00:28]} 46. d6+ {[%emt 0:00:09]} Kd7 {[%emt 0:00:17]} 47. c5 {[%emt 0:00:10]} Bd5 {[%emt 0:00:24]} 48. Ra7+ {[%emt 0:00:14]} Kd8 {[%emt 0:00:45]} 49. b5 {[%emt 0:00:19]} h5 {[%emt 0:00:28]} 50. c6 {[%emt 0:00:10]} g4 {[%emt 0:00:24]} 51. Ra8# {[%emt 0:00:12]} 1-0